[Event "*** Titled Tuesday Blitz"]
[Site "Chess.com"]
[Date "2019.07.02"]
[Round "7"]
[White "Karina_Ivanova"]
[Black "pedro_gines"]
[Result "1-0"]
[WhiteElo "2188"]
[BlackElo "2378"]
[TimeControl "180+2"]
[EndTime "14:38:26 PDT"]
[Termination "Karina_Ivanova won by checkmate"]

1. Nf3 {[%clk 0:02:58.3]} 1... d6 {[%clk 0:03:00.4]} 2. g3 {[%clk 0:02:59.1]}
2... Nf6 {[%clk 0:03:01.4]} 3. Bg2 {[%clk 0:02:59.6]} 3... e5 {[%clk 0:03:02.3]}
4. c4 {[%clk 0:03:00.2]} 4... Be7 {[%clk 0:03:03.1]} 5. Nc3 {[%clk 0:03:00.8]}
5... O-O {[%clk 0:03:04.6]} 6. O-O {[%clk 0:03:01.7]} 6... Nc6 {[%clk
0:02:59.5]} 7. d3 {[%clk 0:02:59.1]} 7... Nh5 {[%clk 0:02:56.5]} 8. Rb1 {[%clk
0:02:59]} 8... f5 {[%clk 0:02:57.5]} 9. b4 {[%clk 0:02:59.6]} 9... f4 {[%clk
0:02:58.2]} 10. b5 {[%clk 0:02:59.8]} 10... Nb8 {[%clk 0:02:57.1]} 11. Nd5
{[%clk 0:02:56.3]} 11... c6 {[%clk 0:02:49.8]} 12. bxc6 {[%clk 0:02:55.8]} 12...
bxc6 {[%clk 0:02:50.1]} 13. Nxe7+ {[%clk 0:02:56.5]} 13... Qxe7 {[%clk 0:02:52]}
14. Nd2 {[%clk 0:02:54.9]} 14... Be6 {[%clk 0:02:22.2]} 15. Qb3 {[%clk
0:02:39.6]} 15... Kh8 {[%clk 0:01:48.5]} 16. Qb7 {[%clk 0:02:27.5]} 16... Nd7
{[%clk 0:01:41.6]} 17. Qxc6 {[%clk 0:02:05.5]} 17... Rac8 {[%clk 0:01:27.8]} 18.
Qa4 {[%clk 0:02:02.1]} 18... Nc5 {[%clk 0:01:27.5]} 19. Qd1 {[%clk 0:02:00.1]}
19... Bg4 {[%clk 0:01:22.6]} 20. Ne4 {[%clk 0:01:48.9]} 20... Nxe4 {[%clk
0:00:30.9]} 21. Bxe4 {[%clk 0:01:48.4]} 21... Bh3 {[%clk 0:00:26.4]} 22. Bg2
{[%clk 0:01:46.4]} 22... Qd7 {[%clk 0:00:18.9]} 23. Rb7 {[%clk 0:01:44]} 23...
Qg4 {[%clk 0:00:14.8]} 24. f3 {[%clk 0:01:31.1]} 24... Qe6 {[%clk 0:00:10.1]}
25. g4 {[%clk 0:01:31.7]} 25... Bxg2 {[%clk 0:00:10.9]} 26. Kxg2 {[%clk
0:01:32.4]} 26... Nf6 {[%clk 0:00:12.4]} 27. h3 {[%clk 0:01:33.4]} 27... Rb8
{[%clk 0:00:12.2]} 28. Qb3 {[%clk 0:01:30.6]} 28... Nd7 {[%clk 0:00:10.7]} 29.
Ba3 {[%clk 0:01:29.8]} 29... Qf6 {[%clk 0:00:04.7]} 30. Rb1 {[%clk 0:01:27.1]}
30... Nb6 {[%clk 0:00:03.6]} 31. Rxb8 {[%clk 0:01:25.8]} 31... Rxb8 {[%clk
0:00:05.5]} 32. c5 {[%clk 0:01:26]} 32... dxc5 {[%clk 0:00:07.4]} 33. Bxc5
{[%clk 0:01:26.7]} 33... Qh4 {[%clk 0:00:08.7]} 34. Bf2 {[%clk 0:01:26]} 34...
Qe7 {[%clk 0:00:10.3]} 35. Qb4 {[%clk 0:01:23]} 35... Qd7 {[%clk 0:00:10.3]} 36.
Qa5 {[%clk 0:01:19.1]} 36... Qe7 {[%clk 0:00:08.7]} 37. Bxb6 {[%clk 0:01:18.2]}
37... axb6 {[%clk 0:00:09.8]} 38. Rxb6 {[%clk 0:01:18.9]} 38... Re8 {[%clk
0:00:09.8]} 39. Qb4 {[%clk 0:01:14.1]} 39... Qh4 {[%clk 0:00:07.8]} 40. Rb8
{[%clk 0:01:10.5]} 40... Qg3+ {[%clk 0:00:08.3]} 41. Kf1 {[%clk 0:01:11.5]}
41... Qxh3+ {[%clk 0:00:10]} 42. Ke1 {[%clk 0:01:12.5]} 42... Rg8 {[%clk
0:00:02.9]} 43. Rxg8+ {[%clk 0:01:12.3]} 43... Kxg8 {[%clk 0:00:03.7]} 44. Qb8+
{[%clk 0:01:13.3]} 44... Kf7 {[%clk 0:00:04.9]} 45. Qc7+ {[%clk 0:01:05.3]}
45... Kf6 {[%clk 0:00:05.7]} 46. Qd6+ {[%clk 0:01:06.1]} 46... Kf7 {[%clk
0:00:06.9]} 47. Qxe5 {[%clk 0:01:05.5]} 47... Qg3+ {[%clk 0:00:06.8]} 48. Kd2
{[%clk 0:01:05.9]} 48... g6 {[%clk 0:00:08.1]} 49. Qc7+ {[%clk 0:01:04.5]} 49...
Kf6 {[%clk 0:00:07.7]} 50. Qd6+ {[%clk 0:01:04.2]} 50... Kg5 {[%clk 0:00:08.4]}
51. Qe7+ {[%clk 0:01:05.1]} 51... Kh6 {[%clk 0:00:08.3]} 52. a4 {[%clk
0:01:00.6]} 52... Qf2 {[%clk 0:00:06.7]} 53. Qf8+ {[%clk 0:00:56.8]} 53... Kg5
{[%clk 0:00:07.3]} 54. Qd8+ {[%clk 0:00:56.8]} 54... Kh6 {[%clk 0:00:08.5]} 55.
Qe7 {[%clk 0:00:55.8]} 55... Qd4 {[%clk 0:00:07.4]} 56. Qe4 {[%clk 0:00:52.9]}
56... Qb2+ {[%clk 0:00:05.1]} 57. Ke1 {[%clk 0:00:53.3]} 57... Kg5 {[%clk
0:00:06]} 58. Kf2 {[%clk 0:00:51.6]} 58... Qb6+ {[%clk 0:00:02.9]} 59. d4 {[%clk
0:00:49.4]} 59... Qd6 {[%clk 0:00:03.5]} 60. Qe5+ {[%clk 0:00:48.9]} 60... Qxe5
{[%clk 0:00:04.8]} 61. dxe5 {[%clk 0:00:49.9]} 61... h5 {[%clk 0:00:06.7]} 62.
gxh5 {[%clk 0:00:50.2]} 62... gxh5 {[%clk 0:00:08.6]} 63. a5 {[%clk 0:00:50.6]}
63... h4 {[%clk 0:00:09]} 64. Kg2 {[%clk 0:00:50.9]} 64... Kf5 {[%clk
0:00:09.9]} 65. a6 {[%clk 0:00:51.1]} 65... Kxe5 {[%clk 0:00:11.5]} 66. a7
{[%clk 0:00:51.8]} 66... Kd4 {[%clk 0:00:12.8]} 67. a8=Q {[%clk 0:00:52.5]}
67... Ke3 {[%clk 0:00:14.7]} 68. Qe4+ {[%clk 0:00:52.5]} 68... Kd2 {[%clk
0:00:15.6]} 69. Qxf4+ {[%clk 0:00:53.5]} 69... Ke1 {[%clk 0:00:16.9]} 70. Qxh4+
{[%clk 0:00:53.6]} 70... Kxe2 {[%clk 0:00:18.2]} 71. Qe4+ {[%clk 0:00:52]} 71...
Kd2 {[%clk 0:00:19.4]} 72. f4 {[%clk 0:00:52.6]} 72... Kc3 {[%clk 0:00:20.2]}
73. f5 {[%clk 0:00:52.6]} 73... Kd2 {[%clk 0:00:22.1]} 74. f6 {[%clk 0:00:53.6]}
74... Kc3 {[%clk 0:00:24]} 75. f7 {[%clk 0:00:54.7]} 75... Kd2 {[%clk
0:00:25.9]} 76. f8=Q {[%clk 0:00:55.6]} 76... Kc3 {[%clk 0:00:27.4]} 77. Qd5
{[%clk 0:00:54.9]} 77... Kc2 {[%clk 0:00:26.6]} 78. Qc8+ {[%clk 0:00:54.8]}
78... Kb2 {[%clk 0:00:27.2]} 79. Qdb7+ {[%clk 0:00:55.4]} 79... Ka3 {[%clk
0:00:27.9]} 80. Qca8# {[%clk 0:00:56.2]} 1-0

[Event "*** Titled Tuesday Blitz"]
[Site "Chess.com"]
[Date "2019.07.02"]
[Round "7"]
[White "iturrizaga"]
[Black "severomorskij"]
[Result "1-0"]
[WhiteElo "2951"]
[BlackElo "2853"]
[TimeControl "180+2"]
[EndTime "14:38:32 PDT"]
[Termination "iturrizaga won on time"]

1. c4 {[%clk 0:03:01.9]} 1... e5 {[%clk 0:03:00]} 2. g3 {[%clk 0:03:03.4]} 2...
c6 {[%clk 0:03:00.5]} 3. Nf3 {[%clk 0:03:03]} 3... e4 {[%clk 0:02:58.6]} 4. Nd4
{[%clk 0:03:04.5]} 4... d5 {[%clk 0:02:58.5]} 5. d3 {[%clk 0:03:05.8]} 5... exd3
{[%clk 0:02:52.3]} 6. Qxd3 {[%clk 0:03:01.5]} 6... dxc4 {[%clk 0:02:53]} 7. Qxc4
{[%clk 0:03:02.4]} 7... Nf6 {[%clk 0:02:53.8]} 8. Bg2 {[%clk 0:03:02.9]} 8...
Be7 {[%clk 0:02:54.8]} 9. O-O {[%clk 0:03:03.7]} 9... O-O {[%clk 0:02:55.6]} 10.
Nc3 {[%clk 0:02:58.5]} 10... Nbd7 {[%clk 0:02:56.4]} 11. Rd1 {[%clk 0:02:56.2]}
11... Ne5 {[%clk 0:02:40.8]} 12. Qa4 {[%clk 0:02:51.7]} 12... Qb6 {[%clk
0:02:34.7]} 13. Nb3 {[%clk 0:02:22.4]} 13... Neg4 {[%clk 0:02:00.3]} 14. Rf1
{[%clk 0:02:07]} 14... Be6 {[%clk 0:01:39.1]} 15. h3 {[%clk 0:02:07]} 15... Ne5
{[%clk 0:01:38.4]} 16. Be3 {[%clk 0:02:07.9]} 16... Qb4 {[%clk 0:01:31]} 17.
Qxb4 {[%clk 0:01:59.6]} 17... Bxb4 {[%clk 0:01:31.2]} 18. Bc5 {[%clk 0:01:50.1]}
18... Bxc5 {[%clk 0:01:29.9]} 19. Nxc5 {[%clk 0:01:52]} 19... Rab8 {[%clk
0:01:27.7]} 20. Rfd1 {[%clk 0:01:39.2]} 20... Ned7 {[%clk 0:01:24.2]} 21. Nd3
{[%clk 0:01:12.4]} 21... Rfd8 {[%clk 0:01:21.7]} 22. Rac1 {[%clk 0:01:09.6]}
22... Kf8 {[%clk 0:01:22]} 23. b3 {[%clk 0:01:08.4]} 23... Ke7 {[%clk
0:01:22.7]} 24. f4 {[%clk 0:01:09.1]} 24... g6 {[%clk 0:01:13.9]} 25. e4 {[%clk
0:01:09.7]} 25... Nb6 {[%clk 0:00:58.7]} 26. Kf2 {[%clk 0:01:08.3]} 26... Nfd7
{[%clk 0:00:48.6]} 27. g4 {[%clk 0:01:08.4]} 27... f6 {[%clk 0:00:49.4]} 28. Ke3
{[%clk 0:01:03.6]} 28... Nc8 {[%clk 0:00:46.5]} 29. Na4 {[%clk 0:01:02.9]} 29...
Ncb6 {[%clk 0:00:41.7]} 30. Nc3 {[%clk 0:01:00.7]} 30... Nc8 {[%clk 0:00:42.6]}
31. Bf3 {[%clk 0:01:02.1]} 31... Nd6 {[%clk 0:00:43.1]} 32. h4 {[%clk
0:01:02.7]} 32... h6 {[%clk 0:00:36]} 33. Rg1 {[%clk 0:00:57.2]} 33... g5 {[%clk
0:00:29.6]} 34. hxg5 {[%clk 0:00:56]} 34... hxg5 {[%clk 0:00:30]} 35. f5 {[%clk
0:00:56.5]} 35... Bg8 {[%clk 0:00:24.8]} 36. Rh1 {[%clk 0:00:56.9]} 36... Nf7
{[%clk 0:00:25.4]} 37. Be2 {[%clk 0:00:49.7]} 37... Nde5 {[%clk 0:00:26]} 38.
Nc5 {[%clk 0:00:44.6]} 38... Nd6 {[%clk 0:00:25.9]} 39. N3a4 {[%clk 0:00:41.1]}
39... b6 {[%clk 0:00:25]} 40. Nd3 {[%clk 0:00:37.6]} 40... Ndf7 {[%clk
0:00:21.7]} 41. Nab2 {[%clk 0:00:35.2]} 41... Rd6 {[%clk 0:00:21.7]} 42. Nc4
{[%clk 0:00:30.2]} 42... Nxc4+ {[%clk 0:00:21.5]} 43. Rxc4 {[%clk 0:00:29]}
43... Rbd8 {[%clk 0:00:19.7]} 44. Rc3 {[%clk 0:00:17.9]} 44... c5 {[%clk
0:00:19.3]} 45. b4 {[%clk 0:00:17.8]} 45... cxb4 {[%clk 0:00:18.2]} 46. Nxb4
{[%clk 0:00:18.9]} 46... Ne5 {[%clk 0:00:19.1]} 47. a4 {[%clk 0:00:18.5]} 47...
a5 {[%clk 0:00:14.3]} 48. Rc7+ {[%clk 0:00:19.5]} 48... R8d7 {[%clk 0:00:13.8]}
49. Rxd7+ {[%clk 0:00:20.4]} 49... Rxd7 {[%clk 0:00:13.9]} 50. Nd3 {[%clk
0:00:21]} 50... Nc4+ {[%clk 0:00:10.6]} 51. Kf2 {[%clk 0:00:21.3]} 51... Nd2
{[%clk 0:00:11.1]} 52. e5 {[%clk 0:00:22.5]} 52... Ne4+ {[%clk 0:00:06]} 53. Ke3
{[%clk 0:00:22.7]} 53... Nc3 {[%clk 0:00:07]} 54. exf6+ {[%clk 0:00:23.6]} 54...
Kxf6 {[%clk 0:00:07.5]} 55. Rh6+ {[%clk 0:00:24.4]} 55... Ke7 {[%clk 0:00:07]}
56. Ne5 {[%clk 0:00:21.3]} 56... Rc7 {[%clk 0:00:04.2]} 57. Bf3 {[%clk
0:00:19.5]} 57... Bd5 {[%clk 0:00:02.4]} 58. Rxb6 {[%clk 0:00:16.9]} 58... Bxf3
{[%clk 0:00:02.7]} 59. Re6+ {[%clk 0:00:18.1]} 59... Kf8 {[%clk 0:00:03]} 60.
Kxf3 {[%clk 0:00:20]} 60... Nxa4 {[%clk 0:00:03.9]} 61. Ra6 {[%clk 0:00:17]}
61... Nc5 {[%clk 0:00:03.9]} 62. Rxa5 {[%clk 0:00:17.6]} 62... Nd7 {[%clk
0:00:04.2]} 63. Nxd7+ {[%clk 0:00:14.7]} 63... Rxd7 {[%clk 0:00:05.1]} 64. Ra6
{[%clk 0:00:16.2]} 64... Rd3+ {[%clk 0:00:04.7]} 65. Ke4 {[%clk 0:00:16.7]}
65... Rg3 {[%clk 0:00:05.4]} 66. f6 {[%clk 0:00:13.7]} 66... Kf7 {[%clk
0:00:02.3]} 67. Kf5 {[%clk 0:00:14.3]} 1-0

[Event "*** Titled Tuesday Blitz"]
[Site "Chess.com"]
[Date "2019.07.02"]
[Round "7"]
[White "Benjoneliere44"]
[Black "ozates"]
[Result "0-1"]
[WhiteElo "2445"]
[BlackElo "2334"]
[TimeControl "180+2"]
[EndTime "14:38:42 PDT"]
[Termination "ozates won by resignation"]

1. d4 {[%clk 0:03:01.9]} 1... d5 {[%clk 0:02:58.8]} 2. Nf3 {[%clk 0:03:02.5]}
2... Nf6 {[%clk 0:02:59.1]} 3. Bf4 {[%clk 0:03:03.1]} 3... c5 {[%clk 0:02:59.3]}
4. c3 {[%clk 0:03:03]} 4... Nc6 {[%clk 0:03:00.1]} 5. e3 {[%clk 0:03:02.6]} 5...
Qb6 {[%clk 0:03:00.5]} 6. Qb3 {[%clk 0:03:01.6]} 6... c4 {[%clk 0:03:01.6]} 7.
Qc2 {[%clk 0:03:00.9]} 7... Bf5 {[%clk 0:03:02]} 8. Qc1 {[%clk 0:03:01.2]} 8...
Nh5 {[%clk 0:02:58.6]} 9. Bg5 {[%clk 0:02:58.8]} 9... h6 {[%clk 0:02:58.7]} 10.
Bh4 {[%clk 0:02:59.8]} 10... g5 {[%clk 0:02:59.2]} 11. Bg3 {[%clk 0:03:00.8]}
11... Nxg3 {[%clk 0:03:00.3]} 12. hxg3 {[%clk 0:03:01.1]} 12... Bg7 {[%clk
0:03:01.4]} 13. Nbd2 {[%clk 0:03:00.1]} 13... e6 {[%clk 0:02:53.2]} 14. Be2
{[%clk 0:03:00.5]} 14... Qc7 {[%clk 0:02:50.4]} 15. Bd1 {[%clk 0:03:01]} 15...
b5 {[%clk 0:02:47.7]} 16. Bc2 {[%clk 0:03:01.9]} 16... Bxc2 {[%clk 0:02:48]} 17.
Qxc2 {[%clk 0:03:03.8]} 17... f5 {[%clk 0:02:47.4]} 18. Ng1 {[%clk 0:02:03.6]}
18... a5 {[%clk 0:02:23.4]} 19. b3 {[%clk 0:01:59.6]} 19... h5 {[%clk
0:01:39.9]} 20. Ne2 {[%clk 0:01:58.9]} 20... Bf6 {[%clk 0:01:34.1]} 21. a4
{[%clk 0:01:38.6]} 21... cxb3 {[%clk 0:01:16.1]} 22. Qxb3 {[%clk 0:01:38]} 22...
b4 {[%clk 0:01:16.7]} 23. O-O {[%clk 0:01:19.9]} 23... h4 {[%clk 0:01:13.8]} 24.
cxb4 {[%clk 0:01:11.7]} 24... hxg3 {[%clk 0:01:12.1]} 25. Nxg3 {[%clk
0:01:07.6]} 25... Qh7 {[%clk 0:01:11.7]} 26. Rfc1 {[%clk 0:01:03.7]} 26... Nxb4
{[%clk 0:00:58.2]} 27. Kf1 {[%clk 0:00:48.7]} 27... f4 {[%clk 0:00:56]} 28. exf4
{[%clk 0:00:42.6]} 28... gxf4 {[%clk 0:00:57.9]} 29. Ne2 {[%clk 0:00:43.6]}
29... Nd3 {[%clk 0:00:32.5]} 30. Rc3 {[%clk 0:00:37.7]} 30... Qh1+ {[%clk
0:00:29.2]} 31. Ng1 {[%clk 0:00:38.6]} 31... Rh2 {[%clk 0:00:29.9]} 32. Qb5+
{[%clk 0:00:33.1]} 32... Kf7 {[%clk 0:00:29.3]} 33. Rc7+ {[%clk 0:00:31.1]}
33... Be7 {[%clk 0:00:29.8]} 34. Qxd3 {[%clk 0:00:16.8]} 34... Qxg2+ {[%clk
0:00:30.4]} 35. Ke1 {[%clk 0:00:18.4]} 35... Qxg1+ {[%clk 0:00:21.9]} 36. Qf1
{[%clk 0:00:17.4]} 36... Qxf1+ {[%clk 0:00:21.1]} 37. Nxf1 {[%clk 0:00:17.9]}
37... Rh1 {[%clk 0:00:21.6]} 38. Rb1 {[%clk 0:00:18.3]} 38... Kf6 {[%clk
0:00:23]} 39. Rbb7 {[%clk 0:00:18.9]} 39... Re8 {[%clk 0:00:23.5]} 40. Ke2
{[%clk 0:00:19.9]} 40... f3+ {[%clk 0:00:24.4]} 41. Ke1 {[%clk 0:00:18.9]} 41...
Bb4+ {[%clk 0:00:25.5]} 42. Kd1 {[%clk 0:00:10.7]} 42... Rxf1+ {[%clk 0:00:26]}
43. Kc2 {[%clk 0:00:12.6]} 43... Rxf2+ {[%clk 0:00:27]} 44. Kd3 {[%clk
0:00:13.5]} 44... Rf8 {[%clk 0:00:26.2]} 45. Ke3 {[%clk 0:00:13.7]} 45... Rf1
{[%clk 0:00:20.6]} 46. Rh7 {[%clk 0:00:14.2]} 46... f2 {[%clk 0:00:20.9]} 47.
Ke2 {[%clk 0:00:13.8]} 47... Re1+ {[%clk 0:00:20]} 48. Kxf2 {[%clk 0:00:15.1]}
48... Kg6+ {[%clk 0:00:21.5]} 49. Kg2 {[%clk 0:00:15.6]} 49... Re2+ {[%clk
0:00:22.8]} 50. Kg3 {[%clk 0:00:15.4]} 50... Be1+ {[%clk 0:00:23]} 51. Kg4
{[%clk 0:00:16.7]} 51... Re4+ {[%clk 0:00:23.4]} 52. Kh3 {[%clk 0:00:17.9]}
52... Rf3+ {[%clk 0:00:23.6]} 53. Kg2 {[%clk 0:00:19.2]} 53... Rf2+ {[%clk
0:00:23.7]} 54. Kh1 {[%clk 0:00:18.1]} 54... Ref4 {[%clk 0:00:15.6]} 55. Rbe7
{[%clk 0:00:10.6]} 55... Rf1+ {[%clk 0:00:15.2]} 56. Kg2 {[%clk 0:00:11.3]}
56... R4f2+ {[%clk 0:00:16.4]} 57. Kh3 {[%clk 0:00:12.7]} 57... Rh1+ {[%clk
0:00:17.4]} 58. Kg4 {[%clk 0:00:12.6]} 58... Rxh7 {[%clk 0:00:18.9]} 59. Rxe6+
{[%clk 0:00:14.1]} 59... Rf6 {[%clk 0:00:20.2]} 60. Rxe1 {[%clk 0:00:15.7]}
60... Rb7 {[%clk 0:00:20.7]} 61. Re5 {[%clk 0:00:16.2]} 61... Rb4 {[%clk
0:00:21.6]} 62. Rxd5 {[%clk 0:00:17.4]} 62... Rxa4 {[%clk 0:00:22.3]} 63. Rd8
{[%clk 0:00:18.8]} 63... Rb4 {[%clk 0:00:21.2]} 64. Kg3 {[%clk 0:00:19.9]} 64...
a4 {[%clk 0:00:22.1]} 65. d5 {[%clk 0:00:21.4]} 65... Rd4 {[%clk 0:00:23]} 66.
Ra8 {[%clk 0:00:18.4]} 66... Rb6 {[%clk 0:00:22.1]} 67. d6 {[%clk 0:00:18.1]}
67... Rbxd6 {[%clk 0:00:22.2]} 68. Kf3 {[%clk 0:00:18.9]} 68... Rd3+ {[%clk
0:00:23.5]} 69. Ke2 {[%clk 0:00:20]} 69... a3 {[%clk 0:00:25.4]} 70. Rg8+ {[%clk
0:00:19.6]} 70... Kf7 {[%clk 0:00:26.6]} 71. Rg4 {[%clk 0:00:20.4]} 71... Rd2+
{[%clk 0:00:27.4]} 72. Ke3 {[%clk 0:00:21]} 72... R6d3+ {[%clk 0:00:28.4]} 73.
Ke4 {[%clk 0:00:20.6]} 73... Rd4+ {[%clk 0:00:30.3]} 74. Ke5 {[%clk 0:00:22]}
74... Rxg4 {[%clk 0:00:30.4]} 0-1

[Event "*** Titled Tuesday Blitz"]
[Site "Chess.com"]
[Date "2019.07.02"]
[Round "7"]
[White "2nd_life"]
[Black "MITerryble"]
[Result "1/2-1/2"]
[WhiteElo "2522"]
[BlackElo "2822"]
[TimeControl "180+2"]
[EndTime "14:38:57 PDT"]
[Termination "Game drawn by repetition"]

1. e4 {[%clk 0:03:01.9]} 1... e6 {[%clk 0:03:01]} 2. Nf3 {[%clk 0:02:58.2]} 2...
d5 {[%clk 0:03:02.1]} 3. e5 {[%clk 0:02:59.6]} 3... c5 {[%clk 0:03:03.3]} 4. b4
{[%clk 0:03:00.9]} 4... cxb4 {[%clk 0:03:05.2]} 5. d4 {[%clk 0:03:01]} 5... Nc6
{[%clk 0:03:06.3]} 6. a3 {[%clk 0:03:00.4]} 6... f6 {[%clk 0:03:04.8]} 7. axb4
{[%clk 0:02:53.4]} 7... Bxb4+ {[%clk 0:03:06.7]} 8. c3 {[%clk 0:02:42.4]} 8...
Be7 {[%clk 0:03:08]} 9. Ba3 {[%clk 0:02:41.3]} 9... fxe5 {[%clk 0:03:03.1]} 10.
Nxe5 {[%clk 0:02:36.9]} 10... Nxe5 {[%clk 0:03:03.7]} 11. dxe5 {[%clk
0:02:38.8]} 11... Qc7 {[%clk 0:02:54]} 12. Qd4 {[%clk 0:02:19.8]} 12... Nh6
{[%clk 0:02:51.1]} 13. Bd3 {[%clk 0:02:19]} 13... O-O {[%clk 0:02:49.1]} 14. O-O
{[%clk 0:02:12.9]} 14... a6 {[%clk 0:02:31.7]} 15. f4 {[%clk 0:02:06]} 15...
Bxa3 {[%clk 0:02:22.8]} 16. Nxa3 {[%clk 0:01:56.7]} 16... Bd7 {[%clk 0:02:24.1]}
17. c4 {[%clk 0:01:54.2]} 17... dxc4 {[%clk 0:02:21.5]} 18. Nxc4 {[%clk
0:01:54.4]} 18... Bb5 {[%clk 0:02:06]} 19. Rac1 {[%clk 0:01:41.1]} 19... Bxc4
{[%clk 0:01:56.3]} 20. Bxc4 {[%clk 0:01:40.9]} 20... Qe7 {[%clk 0:01:56.9]} 21.
Qb6 {[%clk 0:01:38.2]} 21... Rae8 {[%clk 0:01:53.5]} 22. Rb1 {[%clk 0:01:32.7]}
22... Kh8 {[%clk 0:01:54.2]} 23. h3 {[%clk 0:01:09.2]} 23... Nf5 {[%clk
0:01:52.1]} 24. Kh2 {[%clk 0:01:05.4]} 24... g5 {[%clk 0:01:24.5]} 25. Bd3
{[%clk 0:00:18.5]} 25... gxf4 {[%clk 0:00:26.2]} 26. Rxf4 {[%clk 0:00:19]} 26...
Qg7 {[%clk 0:00:19.7]} 27. Bxf5 {[%clk 0:00:11.4]} 27... Qxe5 {[%clk 0:00:20.6]}
28. Qd4 {[%clk 0:00:11]} 28... exf5 {[%clk 0:00:20.3]} 29. Qxe5+ {[%clk
0:00:09]} 29... Rxe5 {[%clk 0:00:22.2]} 30. Rxb7 {[%clk 0:00:10.3]} 30... Kg8
{[%clk 0:00:14.2]} 31. Rh4 {[%clk 0:00:09.2]} 31... Rf7 {[%clk 0:00:15]} 32.
Rxf7 {[%clk 0:00:09.7]} 32... Kxf7 {[%clk 0:00:16.9]} 33. Rxh7+ {[%clk
0:00:11.1]} 33... Kg6 {[%clk 0:00:17.9]} 34. Ra7 {[%clk 0:00:12.2]} 34... Ra5
{[%clk 0:00:19.2]} 35. Ra8 {[%clk 0:00:09.4]} 35... Ra3 {[%clk 0:00:19.5]} 36.
Kg1 {[%clk 0:00:05.8]} 36... Ra2 {[%clk 0:00:20.3]} 37. Kf1 {[%clk 0:00:04.8]}
37... a5 {[%clk 0:00:21.3]} 38. Rg8+ {[%clk 0:00:05.9]} 38... Kf7 {[%clk
0:00:21.7]} 39. Rb8 {[%clk 0:00:05.5]} 39... a4 {[%clk 0:00:22.6]} 40. Ra8
{[%clk 0:00:04]} 40... a3 {[%clk 0:00:23.5]} 41. Kg1 {[%clk 0:00:04.9]} 41...
Kf6 {[%clk 0:00:24.3]} 42. Ra5 {[%clk 0:00:04.5]} 42... f4 {[%clk 0:00:24.9]}
43. h4 {[%clk 0:00:05.3]} 43... Kg6 {[%clk 0:00:25.7]} 44. h5+ {[%clk
0:00:05.9]} 44... Kh6 {[%clk 0:00:26.9]} 45. Kh1 {[%clk 0:00:07.1]} 45... Ra1+
{[%clk 0:00:21.4]} 46. Kh2 {[%clk 0:00:08.3]} 46... a2 {[%clk 0:00:22.8]} 47.
Ra6+ {[%clk 0:00:03.6]} 47... Kxh5 {[%clk 0:00:23.9]} 48. Ra8 {[%clk 0:00:05]}
48... Kg4 {[%clk 0:00:24]} 49. Ra7 {[%clk 0:00:04.6]} 49... Kf5 {[%clk 0:00:25]}
50. Ra8 {[%clk 0:00:05.8]} 50... Ke5 {[%clk 0:00:26.1]} 51. Re8+ {[%clk
0:00:05.9]} 51... Kd4 {[%clk 0:00:26.9]} 52. Ra8 {[%clk 0:00:06.8]} 52... Ke3
{[%clk 0:00:28.8]} 53. Ra3+ {[%clk 0:00:05.4]} 53... Kd2 {[%clk 0:00:29.2]} 54.
Ra8 {[%clk 0:00:06.1]} 54... Kc2 {[%clk 0:00:31.1]} 55. Rc8+ {[%clk 0:00:06.9]}
55... Kb3 {[%clk 0:00:33]} 56. Rb8+ {[%clk 0:00:08]} 56... Kc4 {[%clk
0:00:34.9]} 57. Rc8+ {[%clk 0:00:09.3]} 57... Kd5 {[%clk 0:00:36.8]} 58. Rd8+
{[%clk 0:00:10.3]} 58... Ke5 {[%clk 0:00:38.7]} 59. Re8+ {[%clk 0:00:11.3]}
59... Kf5 {[%clk 0:00:40.1]} 60. Ra8 {[%clk 0:00:12.2]} 60... Ke6 {[%clk
0:00:41]} 61. Ra7 {[%clk 0:00:12.9]} 61... Kd6 {[%clk 0:00:42]} 62. Ra8 {[%clk
0:00:14.2]} 62... Kc6 {[%clk 0:00:43.6]} 63. Ra7 {[%clk 0:00:15.5]} 63... Kb6
{[%clk 0:00:45.5]} 64. Ra8 {[%clk 0:00:16.9]} 64... Kb5 {[%clk 0:00:46]} 65. Ra7
{[%clk 0:00:18]} 65... Kb4 {[%clk 0:00:47.1]} 66. Rb7+ {[%clk 0:00:18.8]} 66...
Kc3 {[%clk 0:00:48.4]} 67. Rc7+ {[%clk 0:00:20.1]} 67... Kd3 {[%clk 0:00:49.4]}
68. Rd7+ {[%clk 0:00:21]} 68... Ke2 {[%clk 0:00:50.6]} 69. Ra7 {[%clk
0:00:22.2]} 69... Ke3 {[%clk 0:00:49.1]} 70. Ra8 {[%clk 0:00:22.3]} 70... Kf2
{[%clk 0:00:48.9]} 71. Ra4 {[%clk 0:00:21.6]} 71... f3 {[%clk 0:00:26.7]} 72.
gxf3 {[%clk 0:00:22.1]} 72... Kxf3 {[%clk 0:00:28.2]} 73. Ra8 {[%clk 0:00:23.1]}
73... Ke3 {[%clk 0:00:29.4]} 74. Ra7 {[%clk 0:00:22.5]} 74... Kd3 {[%clk
0:00:30.4]} 75. Ra8 {[%clk 0:00:23.6]} 75... Kc4 {[%clk 0:00:32.3]} 76. Rc8+
{[%clk 0:00:24.7]} 76... Kb4 {[%clk 0:00:34.2]} 77. Rb8+ {[%clk 0:00:26]} 77...
Ka5 {[%clk 0:00:35.3]} 78. Ra8+ {[%clk 0:00:27.3]} 78... Kb6 {[%clk 0:00:37.2]}
79. Kg2 {[%clk 0:00:27.9]} 79... Kb7 {[%clk 0:00:37.7]} 80. Ra3 {[%clk
0:00:28.8]} 80... Kc6 {[%clk 0:00:39]} 81. Ra8 {[%clk 0:00:29.7]} 81... Kb5
{[%clk 0:00:40.4]} 82. Kh2 {[%clk 0:00:30.5]} 82... Kc4 {[%clk 0:00:42.3]} 83.
Rc8+ {[%clk 0:00:30]} 83... Kb3 {[%clk 0:00:43.4]} 84. Rb8+ {[%clk 0:00:31.3]}
84... Kc2 {[%clk 0:00:45.3]} 85. Rc8+ {[%clk 0:00:32.7]} 85... Kb2 {[%clk
0:00:47.2]} 86. Rb8+ {[%clk 0:00:34]} 86... Kc1 {[%clk 0:00:49.1]} 87. Rc8+
{[%clk 0:00:35.4]} 87... Kb1 {[%clk 0:00:51]} 88. Rb8+ {[%clk 0:00:36.7]} 88...
Kc2 {[%clk 0:00:52.9]} 89. Rc8+ {[%clk 0:00:38]} 89... Kb3 {[%clk 0:00:54.8]}
90. Rb8+ {[%clk 0:00:39.4]} 90... Ka3 {[%clk 0:00:56.7]} 91. Ra8+ {[%clk
0:00:40.5]} 91... Kb4 {[%clk 0:00:58.6]} 92. Rb8+ {[%clk 0:00:41.8]} 92... Kc4
{[%clk 0:01:00.5]} 93. Rc8+ {[%clk 0:00:43]} 1/2-1/2